bitfinex-derivatives/quotes_SOLF0:USTF0_20250501
["timestamp","ask_amount","ask_price","bid_price","bid_amount"]
[1746093862157,6.604,151.4,151.37,30.1852]
[1746093862869,6.6037,151.41,151.37,30.1852]
[1746093863073,6.6037,151.41,151.38,6.6048]
[1746093863367,23.58,151.45,151.38,6.6048]
[1746093863570,23.58,151.45,151.39,6.6044]
[1746093864067,6.6029,151.43,151.4,6.604]
[1746093864573,6.6031,151.42,151.39,6.6044]
[1746093866365,6.6028,151.43,151.39,6.6044]
[1746093866566,23.58,151.45,151.4,6.6037]
[1746093866873,6.6027,151.43,151.4,6.6037]
[1746093868273,6.6025,151.44,151.4,6.6037]
[1746093868462,23.58,151.45,151.37,23.58]
[1746093868775,6.6031,151.43,151.37,23.58]
[1746093868969,23.58,151.45,151.37,30.1851]
[1746093869271,6.6039,151.41,151.37,30.1851]
[1746093869573,23.58,151.45,151.37,30.1851]
[1746093869976,6.604,151.4,151.37,30.1851]
[1746093870177,23.58,151.45,151.38,6.6047]
[1746093870473,23.58,151.45,151.37,23.58]
[1746093870778,6.6041,151.4,151.37,30.185]
[1746093870971,6.6041,151.4,151.37,23.58]
[1746093871170,23.58,151.45,151.37,23.58]
[1746093871370,6.6038,151.41,151.38,6.6046]
[1746093871571,6.6038,151.41,151.37,23.58]
[1746093871769,23.58,151.45,151.37,23.58]
[1746093872175,6.6029,151.43,151.4,6.604]
[1746093872471,6.6029,151.43,151.37,23.58]
[1746093872667,6.6031,151.42,151.39,6.6042]
[1746093872868,23.58,151.45,151.39,6.6042]
[1746093873967,23.58,151.45,151.37,23.58]
[1746093874775,23.58,151.45,151.37,30.185]
[1746093875273,23.58,151.45,151.37,23.58]
[1746093875678,25.5157,151.45,151.37,23.58]
[1746093875878,6.6044,151.4,151.37,30.1851]
[1746093876378,6.6044,151.4,151.38,6.6048]
[1746093876874,6.6044,151.4,151.37,30.185]
[1746093878176,6.6048,151.39,151.37,23.58]
[1746093878382,7.85312509,151.43,151.34,1.36643]
[1746093878976,7.85312509,151.4,151.34,1.36643]
[1746093879282,6.6062,151.35,151.34,1.36643]
[1746093880782,6.606,151.36,151.34,1.36643]
[1746093881782,6.6055,151.37,151.34,1.36643]
[1746093882282,31.45312509,151.4,151.34,1.36643]
[1746093882983,6.6056,151.37,151.34,7.97293]
[1746093883376,23.6,151.4,151.34,1.36643]
[1746093883570,6.6051,151.38,151.35,6.606]
[1746093883778,23.6,151.4,151.34,1.36643]
[1746093883976,7.85312509,151.43,151.34,1.36643]
[1746093883977,31.43312509,151.43,151.35,23.58]
[1746093884180,23.58,151.43,151.35,25.5132]
[1746093884377,23.58,151.43,151.35,29.605]
[1746093884577,6.604,151.4,151.37,6.605]
[1746093884779,23.58,151.43,151.37,6.605]
[1746093885280,6.6039,151.41,151.37,6.605]
[1746093885484,23.58,151.43,151.37,6.605]
[1746093885888,23.58,151.43,151.36,6.6055]
[1746093886483,23.58,151.43,151.35,36.2111]
[1746093886686,31.43312509,151.43,151.35,36.2111]
[1746093886986,6.6047,151.39,151.35,36.2111]
[1746093887189,6.6047,151.39,151.36,6.6057]
[1746093888789,6.6047,151.39,151.35,36.2109]
[1746093889182,6.605,151.38,151.35,27.5685]
[1746093889486,31.43312509,151.43,151.35,23.58]
[1746093889682,6.6056,151.37,151.35,23.58]
[1746093892890,31.43312509,151.43,151.36,6.6056]
[1746093893491,6.6046,151.39,151.36,6.6056]
[1746093895489,6.6042,151.4,151.36,6.6056]
[1746093895699,33.40272509,151.46,151.35,23.58]
[1746093896693,33.40272509,151.46,151.37,6.6051]
[1746093897193,6.6039,151.41,151.37,6.6051]
[1746093898291,33.40272509,151.46,151.37,6.6051]
[1746093898495,6.604,151.4,151.37,6.6051]
[1746093900796,6.6039,151.41,151.37,6.6051]
[1746093900997,33.40272509,151.46,151.37,6.6051]
[1746093901201,33.40272509,151.46,151.35,23.58]
[1746093901591,31.43312509,151.46,151.35,23.58]
[1746093901898,23.58,151.46,151.36,7.85312509]
[1746093902997,6.6016,151.46,151.42,6.6027]
[1746093904000,6.6019,151.45,151.42,6.6027]
[1746093904300,31.43312509,151.49,151.41,30.1832]
[1746093904499,6.6021,151.45,151.41,30.1832]
[1746093905601,6.6021,151.45,151.42,6.603]
[1746093906601,6.6021,151.45,151.41,30.1834]
[1746093906795,6.6021,151.45,151.41,23.58]
[1746093908200,6.6021,151.45,151.41,30.1833]
[1746093908499,6.6023,151.44,151.41,30.1833]
[1746093909802,6.602,151.45,151.41,30.1833]
[1746093910202,6.6023,151.44,151.41,30.1833]
[1746093910390,31.43312509,151.49,151.41,30.1833]
[1746093910595,31.43312509,151.49,151.41,23.58]
[1746093911096,31.43312509,151.49,151.41,30.1833]
[1746093911504,6.6021,151.45,151.41,30.1833]
[1746093913104,6.6023,151.44,151.41,30.1833]
[1746093913797,6.602,151.45,151.41,30.1833]
[1746093914405,6.6023,151.44,151.41,30.1833]
[1746093915507,6.6019,151.45,151.41,30.1833]
[1746093916608,6.6023,151.44,151.41,30.1833]
[1746093917102,31.43312509,151.49,151.41,30.1833]
[1746093917306,6.602,151.45,151.41,30.1833]
[1746093918106,6.602,151.45,151.42,6.6029]
[1746093918303,6.6016,151.46,151.42,6.6029]
[1746093920609,6.6019,151.45,151.42,6.6029]
[1746093921110,6.6025,151.44,151.41,23.58]
[1746093921610,6.6025,151.44,151.41,30.1835]
[1746093921810,6.6025,151.44,151.41,23.58]
[1746093922910,6.6025,151.44,151.41,30.1833]
[1746093924514,23.58,151.49,151.41,23.58]
[1746093925113,6.6012,151.47,151.42,23.54]
[1746093925618,6.6012,151.47,151.43,6.6025]
[1746093926815,6.6012,151.47,151.44,6.602]
[1746093927618,6.6006,151.48,151.45,6.6018]
[1746093927810,2.0554,151.53,151.42,23.54]
[1746093928212,6.5988,151.52,151.42,23.54]
[1746093928710,8.6539,151.53,151.42,23.54]
[1746093928907,2.0554,151.53,151.42,23.54]
[1746093929315,6.599,151.52,151.48,6.6001]
[1746093929814,6.599,151.52,151.46,23.54]
[1746093930720,8.6539,151.53,151.49,6.5998]
[1746093931412,2.0554,151.53,151.5,6.5995]
[1746093931619,2.0554,151.53,151.46,23.54]
[1746093932110,2.0554,151.53,151.5,6.5994]
[1746093933920,8.6538,151.53,151.5,6.5994]
[1746093934125,2.0554,151.53,151.5,6.5994]
[1746093937221,2.0554,151.53,151.51,6.5992]
[1746093938522,8.6537,151.53,151.5,6.5993]
[1746093939127,6.599,151.52,151.48,6.6004]
[1746093939826,6.599,151.52,151.49,6.6]
[1746093940725,6.599,151.52,151.5,6.5996]
[1746093940926,6.5985,151.53,151.5,6.5996]
[1746093941326,23.54,151.54,151.46,23.54]
[1746093941530,30.1381,151.54,151.46,23.54]
[1746093941920,30.1381,151.54,151.5,6.5993]
[1746093942427,6.5984,151.53,151.49,6.5999]
[1746093943033,6.5984,151.53,151.5,6.5996]
[1746093944431,30.1381,151.54,151.5,6.5996]
[1746093944629,6.5981,151.54,151.5,6.5996]
[1746093945133,6.5981,151.54,151.51,6.5992]
[1746093946133,6.5981,151.54,151.47,1.9383]
[1746093946642,6.5981,151.54,151.5,6.5992]
[1746093946942,6.5981,151.54,151.47,1.9383]
[1746093947140,6.5981,151.54,151.5,6.5992]
[1746093948443,6.5981,151.54,151.51,6.5991]
[1746093948745,6.5981,151.54,151.47,1.9383]
[1746093949039,6.5981,151.54,151.5,6.5994]
[1746093949347,1.9192,151.55,151.47,1.9383]
[1746093949641,1.9192,151.55,151.49,6.6]
[1746093949836,6.5987,151.53,151.49,6.6]
[1746093951146,1.9192,151.55,151.49,6.6]
[1746093951147,6.5988,151.52,151.49,6.6]
[1746093951348,1.9192,151.55,151.47,1.9383]
[1746093951746,23.52,151.57,151.47,1.9383]
[1746093951949,23.52,151.57,151.48,2.0631]
[1746093953255,6.5975,151.55,151.48,2.0631]
[1746093953454,23.52,151.57,151.47,4.0109]
[1746093954052,23.52,151.57,151.49,6.5998]
[1746093954747,23.52,151.57,151.48,6.6003]
[1746093955051,23.52,151.57,151.47,4.0109]
[1746093955452,23.52,151.57,151.49,6.6]
[1746093955749,6.5986,151.53,151.49,6.6]
[1746093956851,6.5988,151.52,151.49,6.6]
[1746093957551,6.5985,151.53,151.49,6.6]
[1746093957949,23.52,151.57,151.47,4.0109]
[1746093959454,6.5986,151.53,151.49,6.5998]
[1746093960759,23.52,151.57,151.47,4.0109]
[1746093961463,6.5981,151.54,151.5,6.5994]
[1746093961959,6.5981,151.54,151.51,6.5992]
[1746093963956,6.5984,151.53,151.5,6.5994]
[1746093964152,23.52,151.57,151.49,23.52]
[1746093964554,23.52,151.57,151.5,6.5996]
[1746093965061,6.5984,151.53,151.5,6.5996]
[1746093965255,23.52,151.57,151.5,6.5996]
[1746093965661,6.5985,151.53,151.5,6.5996]
[1746093967365,6.5985,151.53,151.49,30.1198]
[1746093967962,6.5988,151.52,151.49,30.1198]
[1746093968464,6.5988,151.52,151.49,23.52]
[1746093969867,6.5988,151.52,151.49,30.12]
[1746093970868,6.5985,151.53,151.49,30.12]
[1746093971061,23.52,151.57,151.49,23.52]
[1746093971365,6.5993,151.51,151.49,23.52]
[1746093972363,6.599,151.52,151.49,23.52]
[1746093972568,6.599,151.52,151.49,30.12]
[1746093973168,6.599,151.52,151.49,23.52]
[1746093974166,23.52,151.57,151.49,23.52]
[1746093974167,6.5992,151.51,151.49,23.52]
[1746093974368,23.52,151.57,151.49,23.52]
[1746093974560,6.599,151.52,151.49,23.52]
[1746093974965,23.52,151.57,151.49,23.52]
[1746093975168,7.85312509,151.55,151.44,1.60117]
[1746093975470,2.0858,151.54,151.46,23.5]
[1746093976860,6.5985,151.53,151.46,23.5]
[1746093977469,6.5985,151.53,151.49,6.5998]
[1746093979169,6.5988,151.52,151.49,6.5998]
[1746093979867,6.5985,151.53,151.49,5.01843701]
[1746093980166,5.01843701,151.55,151.49,5.01843701]
[1746093980670,6.5988,151.52,151.49,11.61823701]
[1746093980865,5.01843701,151.55,151.49,11.61823701]
[1746093981269,6.599,151.52,151.49,5.01843701]
[1746093981669,6.599,151.52,151.48,30.1003]
[1746093982172,6.599,151.52,151.49,6.6]
[1746093982471,23.52,151.57,151.49,5.01843701]
[1746093982670,23.52,151.57,151.52,6.5985]
[1746093982875,23.52,151.57,151.51,5.01843701]
[1746093983072,6.5977,151.55,151.51,5.01843701]
[1746093983270,23.52,151.57,151.51,5.01843701]
[1746093983470,6.5972,151.56,151.52,23.5]
[1746093983770,6.5972,151.56,151.52,30.0984]
[1746093984371,6.5972,151.56,151.52,23.5]
[1746093985173,6.5972,151.56,151.53,6.5983]
[1746093986578,6.5968,151.57,151.53,6.5983]
[1746093986874,2.0611,151.59,151.52,30.0985]
[1746093987171,6.5966,151.57,151.52,30.0985]
[1746093987970,6.5975,151.55,151.52,23.5]
[1746093989074,2.0611,151.59,151.52,23.5]
[1746093989373,25.5889,151.6,151.52,23.5]
[1746093989573,23.5,151.6,151.52,23.5]
[1746093990265,1.9236,151.62,151.52,23.5]
[1746093991572,6.5951,151.61,151.56,6.5966]
[1746093991767,6.5951,151.61,151.56,30.0766]
[1746093992175,6.5954,151.6,151.56,30.0766]
[1746093993171,1.9754,151.65,151.58,6.5961]
[1746093993477,1.9754,151.65,151.57,1.9525]
[1746093993674,6.5951,151.61,151.57,8.549]
[1746093993974,1.9754,151.65,151.57,23.48]
[1746093994177,6.5955,151.6,151.57,23.48]
[1746093994580,7.837573,151.63,151.57,23.48]
[1746093994781,6.5961,151.58,151.57,23.48]
[1746093998982,6.5967,151.57,151.54,30.0777]
[1746094000878,6.5967,151.57,151.54,23.48]
[1746094001780,2.0947,151.62,151.54,23.48]
[1746094002081,7.837573,151.61,151.53,23.48]
[1746094002277,6.5977,151.55,151.53,23.48]
[1746094004190,6.5979,151.54,151.53,23.48]
[1746094005188,6.5984,151.53,151.5,30.0593]
[1746094007492,6.5984,151.53,151.5,23.46]
[1746094007787,6.5988,151.52,151.5,23.46]
[1746094007993,23.46,151.56,151.5,23.46]
[1746094008387,6.5992,151.51,151.5,23.46]
[1746094009500,6.599,151.52,151.5,23.46]
[1746094010900,6.5985,151.53,151.5,23.46]
[1746094011398,6.5985,151.53,151.5,30.0595]
[1746094011599,23.46,151.56,151.5,23.46]
[1746094011799,25.4563,151.59,151.5,23.46]
[1746094011994,25.4563,151.59,151.52,6.5985]
[1746094012202,6.5968,151.57,151.5,23.46]
[1746094012394,23.46,151.59,151.51,2.0434]
[1746094012599,6.5958,151.59,151.55,6.5972]
[1746094013000,23.46,151.62,151.54,23.46]
[1746094013204,6.5956,151.6,151.56,6.5967]
[1746094014097,6.5958,151.59,151.56,6.5967]
[1746094014600,6.5958,151.59,151.55,6.5973]
[1746094015604,6.5939,151.64,151.54,23.46]
[1746094015898,2.0662,151.67,151.55,2.054]
[1746094016295,6.5938,151.64,151.59,6.5955]
[1746094017404,6.5938,151.64,151.6,6.5952]
[1746094018405,6.5934,151.65,151.61,6.5947]
[1746094018603,6.5934,151.65,151.58,23.46]
[1746094018803,2.0662,151.67,151.58,23.46]
[1746094019402,7.837573,151.65,151.58,23.46]
[1746094019601,6.5955,151.6,151.56,6.5969]
[1746094020604,6.5958,151.59,151.56,6.5969]
[1746094020811,23.46,151.64,151.56,6.5969]
[1746094021301,6.5956,151.6,151.56,6.5969]
[1746094022306,6.5958,151.59,151.55,32.1113]
[1746094023312,6.5954,151.6,151.56,6.597]
[1746094023606,1.9785,151.63,151.55,25.514]
[1746094023810,23.46,151.64,151.55,25.514]
[1746094024111,25.5262,151.67,151.56,7.837573]
[1746094024312,25.5262,151.67,151.55,25.514]
[1746094024608,6.5937,151.64,151.59,6.5953]
[1746094024808,6.5937,151.64,151.59,30.0553]
[1746094025009,6.594,151.63,151.59,30.0553]
[1746094025308,25.5262,151.67,151.59,30.0553]
[1746094025506,25.5262,151.67,151.59,23.46]
[1746094026611,6.5941,151.63,151.59,30.0553]
[1746094026809,6.5941,151.63,151.59,23.46]
[1746094027210,6.5941,151.63,151.6,6.5952]
[1746094027403,6.5941,151.63,151.59,23.46]
[1746094027798,6.5941,151.63,151.59,30.0554]
[1746094028611,25.5262,151.67,151.6,6.5952]
[1746094028612,6.5937,151.64,151.6,6.5952]
[1746094029413,6.5928,151.66,151.62,6.5943]
[1746094029605,25.5262,151.67,151.59,23.46]
[1746094030114,6.5933,151.65,151.6,6.5949]
[1746094030319,25.5262,151.67,151.6,6.5949]
[1746094030510,25.5262,151.67,151.59,23.46]
[1746094030914,6.5935,151.65,151.61,6.5948]
[1746094031213,25.5262,151.67,151.61,6.5948]
[1746094032816,25.5262,151.67,151.62,6.5943]
[1746094033019,6.5933,151.65,151.62,6.5943]
[1746094033405,25.5262,151.67,151.62,6.5943]
[1746094033716,25.5262,151.67,151.61,6.5946]
[1746094033913,25.5262,151.67,151.59,23.46]
[1746094034216,6.5935,151.65,151.61,6.5947]
[1746094034417,25.5262,151.67,151.61,6.5947]
[1746094034816,6.5934,151.65,151.62,6.5944]
[1746094035118,23.46,151.67,151.59,23.46]
[1746094035418,23.46,151.67,151.61,6.5945]
[1746094036120,6.5938,151.64,151.61,6.5945]
[1746094037121,6.594,151.63,151.6,6.5951]
[1746094037421,23.46,151.67,151.6,6.5951]
[1746094037830,6.5931,151.65,151.6,6.5951]
[1746094038121,23.46,151.67,151.6,6.5951]
[1746094038521,6.5942,151.63,151.6,6.5951]
[1746094039322,6.5944,151.62,151.59,30.0555]
[1746094040221,6.5942,151.63,151.59,30.0555]
[1746094040424,27.3881,151.67,151.61,6.5947]
[1746094040723,27.3881,151.67,151.59,23.46]
[1746094040918,6.5939,151.64,151.59,23.46]
[1746094041222,6.5939,151.64,151.6,6.5951]
[1746094041924,6.5939,151.64,151.61,6.5948]
[1746094042625,6.5933,151.65,151.61,6.5948]
[1746094042823,27.3881,151.67,151.61,6.5948]
[1746094043127,6.5933,151.65,151.61,6.5948]
[1746094043317,6.5933,151.65,151.62,6.5944]
[1746094043518,6.5933,151.65,151.59,23.46]
[1746094043927,6.5933,151.65,151.61,6.5945]
[1746094044928,6.5935,151.64,151.61,6.5945]
[1746094045124,27.3881,151.67,151.62,6.5943]
[1746094045426,6.5937,151.64,151.59,23.46]
[1746094046026,6.5942,151.63,151.59,23.46]
[1746094046526,29.3943,151.67,151.59,23.46]
[1746094046724,7.837573,151.63,151.55,25.494]
[1746094046927,31.277573,151.63,151.55,30.0372]
[1746094047130,6.5962,151.58,151.55,30.0372]
[1746094047428,31.277573,151.63,151.55,23.44]
[1746094047927,6.5963,151.58,151.55,23.44]
[1746094048227,6.5959,151.59,151.55,23.44]
[1746094048922,23.44,151.63,151.55,23.44]
[1746094049531,6.5951,151.61,151.57,6.5962]
[1746094050731,6.5953,151.6,151.57,6.5962]
[1746094050933,6.5953,151.6,151.56,6.5969]
[1746094052327,6.5951,151.61,151.57,6.5965]
[1746094052631,6.5951,151.61,151.55,23.44]
[1746094052939,6.5951,151.61,151.57,6.5963]
[1746094053142,6.5944,151.62,151.55,23.44]
[1746094053344,6.5944,151.62,151.56,1.9014]
[1746094053546,6.5941,151.63,151.56,9.738973]
[1746094053847,31.277573,151.66,151.56,11.722473]
[1746094054042,31.277573,151.66,151.56,3.8849]
[1746094054246,6.595,151.61,151.57,6.5962]
[1746094054749,6.595,151.61,151.56,3.8849]
[1746094055249,6.5946,151.62,151.58,6.5959]
[1746094055651,6.5946,151.62,151.59,23.44]
[1746094056150,6.5946,151.62,151.59,30.0357]
[1746094056550,6.5941,151.63,151.59,30.0357]
[1746094056851,23.44,151.66,151.59,23.44]
[1746094057051,6.5939,151.64,151.59,23.44]
[1746094057549,6.5939,151.64,151.6,6.595]
[1746094057938,6.594,151.63,151.6,6.595]
[1746094058649,6.594,151.63,151.59,30.0355]
[1746094059043,6.5937,151.64,151.59,23.44]
[1746094059245,6.5937,151.64,151.6,6.5951]
[1746094059446,23.44,151.66,151.6,6.5951]
[1746094059943,23.44,151.66,151.59,23.44]
[1746094060144,6.5942,151.63,151.59,23.44]
[1746094060551,6.5942,151.63,151.59,30.0357]
[1746094061252,6.5942,151.63,151.6,6.5952]
[1746094061654,23.44,151.66,151.59,23.44]
[1746094061848,3.9281,151.67,151.61,6.5946]
[1746094062149,6.5928,151.66,151.59,23.44]
[1746094062453,31.277573,151.69,151.61,6.5946]
[1746094062750,6.5933,151.65,151.61,6.5946]
[1746094063651,6.5933,151.65,151.62,6.5943]
[1746094065057,6.5933,151.65,151.61,6.5948]
[1746094065258,6.5936,151.64,151.59,23.44]
[1746094065859,6.5936,151.64,151.6,6.595]
[1746094066959,6.5936,151.64,151.61,6.5948]
[1746094067659,31.277573,151.69,151.62,6.5943]
[1746094068162,6.593,151.66,151.62,6.5943]
[1746094068662,6.593,151.66,151.63,6.594]
[1746094069158,31.277573,151.69,151.63,6.594]
[1746094069357,6.5924,151.67,151.59,25.5288]
[1746094069761,6.5924,151.67,151.63,6.5936]
[1746094070261,6.592,151.68,151.59,25.5288]
[1746094070959,6.5923,151.67,151.62,6.5942]
[1746094071159,6.5923,151.67,151.63,23.42]
[1746094071465,23.44,151.69,151.63,23.42]
[1746094072967,6.5935,151.64,151.63,23.42]
[1746094075764,6.5946,151.62,151.6,30.0151]
[1746094076565,6.5946,151.62,151.6,23.42]
[1746094077165,6.5948,151.61,151.6,23.42]
[1746094077660,6.5946,151.62,151.6,23.42]
[1746094078165,13.1838,151.68,151.6,23.42]
[1746094078366,6.5948,151.61,151.6,23.42]
[1746094079267,6.5946,151.62,151.6,23.42]
[1746094082260,7.837573,151.66,151.56,1.9014]
[1746094082559,7.837573,151.66,151.57,23.42]
[1746094082560,23.42,151.65,151.57,23.42]
[1746094082760,6.5952,151.61,151.57,30.0164]
[1746094082965,6.5952,151.61,151.57,23.42]
[1746094083369,6.5952,151.61,151.57,30.0164]
[1746094083971,6.5946,151.62,151.58,6.5961]
[1746094084165,11.897873,151.66,151.57,23.42]
[1746094084470,2.0545,151.67,151.57,23.42]
[1746094084665,23.42,151.68,151.57,23.42]
[1746094084869,23.42,151.68,151.58,7.837573]
[1746094085367,6.5924,151.67,151.63,6.5937]
[1746094085568,7.837573,151.69,151.62,23.42]
[1746094085866,6.5923,151.67,151.62,23.42]
[1746094086266,6.5923,151.67,151.63,6.5937]
[1746094086473,6.5927,151.66,151.63,6.5937]
[1746094086869,7.837573,151.69,151.63,6.5937]
[1746094087070,6.5926,151.67,151.63,6.5937]
[1746094088071,6.5927,151.66,151.63,122.2877]
[1746094089162,6.5925,151.67,151.63,122.2877]
[1746094089474,7.837573,151.69,151.63,122.2877]
[1746094089968,6.5927,151.66,151.63,122.2877]
[1746094091074,7.837573,151.69,151.63,122.2877]
[1746094091580,6.5927,151.66,151.63,122.2877]
[1746094092070,7.837573,151.69,151.64,6.5935]
[1746094092672,27.5148,151.71,151.64,6.5935]
[1746094092875,27.5148,151.71,151.63,115.694]
[1746094093976,6.5924,151.67,151.63,122.2877]
[1746094094274,27.5148,151.71,151.63,115.694]
[1746094094676,6.5933,151.65,151.63,115.694]
[1746094094974,27.5148,151.71,151.63,115.694]
[1746094095279,6.5935,151.64,151.63,115.694]
[1746094099181,6.5928,151.66,151.63,122.288]
[1746094099586,6.5928,151.66,151.63,115.694]
[1746094099983,6.5924,151.67,151.63,115.694]
[1746094100280,23.42,151.71,151.63,115.694]
[1746094100677,7.837573,151.69,151.63,115.694]
[1746094101277,6.5935,151.64,151.63,115.694]
[1746094105390,7.837573,151.66,151.58,23.4]
[1746094105687,7.837573,151.63,151.56,1.9014]
[1746094105889,6.5959,151.59,151.56,8.4981]
[1746094106789,6.5959,151.59,151.57,6.5966]
[1746094107087,6.5955,151.6,151.57,6.5966]
[1746094107286,31.237573,151.63,151.57,6.5966]
[1746094108088,31.237573,151.63,151.55,25.305]
[1746094108284,31.237573,151.63,151.55,23.4]
[1746094108689,6.5962,151.58,151.55,23.4]
[1746094109493,6.5962,151.58,151.55,29.9972]
[1746094109680,31.237573,151.63,151.55,23.4]
[1746094110191,31.237573,151.63,151.57,6.5964]
[1746094110779,6.5951,151.61,151.57,6.5964]
[1746094110986,6.5951,151.61,151.58,6.5961]
[1746094111184,31.237573,151.63,151.55,23.4]
[1746094111380,6.595,151.61,151.55,23.4]
[1746094111686,31.237573,151.63,151.55,23.4]
[1746094112086,31.237573,151.63,151.56,6.5969]
[1746094113094,6.5956,151.6,151.56,6.5969]
[1746094113494,31.237573,151.63,151.56,6.5969]
[1746094114195,6.5957,151.6,151.56,6.5969]
[1746094114394,31.237573,151.63,151.55,23.4]
[1746094114992,31.237573,151.63,151.54,23.4]
[1746094115294,6.5955,151.6,151.54,23.4]
[1746094115494,31.237573,151.63,151.56,6.5968]
[1746094115999,6.5955,151.6,151.56,6.5968]
[1746094116901,6.5955,151.6,151.54,23.4]
[1746094117402,6.5949,151.61,151.54,23.4]
[1746094118006,6.5949,151.61,151.57,6.5963]
[1746094118201,6.5946,151.62,151.55,4.0697]
[1746094118500,23.4,151.63,151.58,6.596]
[1746094118903,6.5947,151.62,151.58,6.596]
[1746094119302,6.5947,151.62,151.57,6.5964]
[1746094119606,23.4,151.63,151.55,6.055]
[1746094119794,23.4,151.63,151.56,6.597]
[1746094119995,6.5955,151.6,151.56,6.597]
[1746094122405,6.595,151.61,151.57,6.5966]
[1746094122595,23.4,151.63,151.57,6.5966]
[1746094123306,6.5953,151.6,151.56,6.5968]
[1746094124305,6.5953,151.6,151.57,6.5966]
[1746094125305,6.5953,151.6,151.56,6.5968]
[1746094125805,6.5959,151.59,151.55,10.667]
[1746094126406,6.5954,151.6,151.56,6.5968]
[1746094126901,6.5952,151.61,151.57,6.5965]
[1746094127205,31.237573,151.63,151.57,6.5965]
[1746094127410,6.5953,151.6,151.57,6.5965]
[1746094127605,31.237573,151.63,151.56,6.5968]
[1746094127802,31.237573,151.63,151.55,4.0697]
[1746094128108,6.5959,151.59,151.55,4.0697]
[1746094128308,6.5959,151.59,151.55,10.6667]
[1746094128604,6.5959,151.59,151.55,4.0697]
[1746094128806,6.5954,151.6,151.55,4.0697]
[1746094129012,6.5954,151.6,151.56,6.5967]
[1746094129306,6.5954,151.6,151.55,4.0697]
[1746094129606,6.5954,151.6,151.56,6.5967]
[1746094129808,6.5959,151.59,151.56,6.5967]
[1746094130502,6.5955,151.6,151.56,6.5967]
[1746094133609,6.5955,151.6,151.57,6.5966]
[1746094134914,6.5955,151.6,151.56,6.5968]
[1746094137515,6.5955,151.6,151.57,6.5966]
[1746094138515,6.5955,151.6,151.56,6.5968]
[1746094139516,6.5959,151.59,151.56,6.5968]
[1746094142811,6.5955,151.6,151.57,6.5962]
[1746094143009,23.4,151.63,151.55,4.0697]
[1746094143411,23.4,151.63,151.55,5.9788]
[1746094143812,6.595,151.61,151.58,6.5961]
[1746094144009,23.4,151.63,151.55,5.9788]
[1746094144516,6.5953,151.6,151.57,6.5964]
[1746094144717,23.4,151.63,151.55,5.9788]
[1746094147017,6.596,151.59,151.56,6.5968]
[1746094148217,6.5966,151.57,151.54,6.5975]
[1746094148723,6.5966,151.57,151.53,23.4]
[1746094148724,7.837573,151.6,151.53,23.4]
[1746094149218,6.5977,151.55,151.53,23.4]
[1746094149422,23.4,151.59,151.53,23.4]
[1746094149716,25.3469,151.59,151.53,23.4]
[1746094149917,6.5978,151.55,151.51,6.5991]